fUST/lending_fUST_20240822
["ID","MTS","AMOUNT","RATE_DAILY","PERIOD"]
[335557489,1724327439322,-500.0,0.00019046,2]
[335557491,1724327439331,-500.0,0.00019046,2]
[335557493,1724327439341,-500.0,0.00019046,2]
[335557495,1724327439350,-500.0,0.00019046,2]
[335557497,1724327439360,-500.0,0.00019046,2]
[335557499,1724327439369,-326.95077951,0.00019046,2]
[335557501,1724327439379,-500.0,0.00019046,2]
[335557503,1724327439390,-289794.66128301,0.00019047,2]
[335557892,1724327443303,-5219.02485079,0.00018646,2]
[335557894,1724327443314,-290.93966491,0.00018838,2]
[335557896,1724327443323,-5718.37227587,0.00019047,9]
[335557899,1724327443335,-12939.69063369,0.00019047,9]
[335557901,1724327443345,-53205.38907127,0.00019047,2]
[335558985,1724327826426,-883.0,0.00010958,2]
[335558988,1724328194556,154.79103211,9.899e-05,2]
[335558989,1724328235322,180.81152876,9.899e-05,2]
[335558990,1724328281432,296.13258418,9.899e-05,2]
[335558991,1724328339445,728.8710597,9.899e-05,2]
[335558996,1724328559131,-300.0,0.00010422,2]
[335558997,1724328559155,-2204.86859905,0.00010423,2]
[335559047,1724328632249,-300.0,0.00010422,2]
[335559049,1724328632259,-8086.30717434,0.00010423,2]
[335559050,1724328632271,-736.02,0.00010423,2]
[335559052,1724328632283,-13862.80422661,0.00010423,2]
[335559054,1724328632292,-250.0,0.00010525,2]
[335559056,1724328632301,-250.0,0.00010554,2]
[335559058,1724328632311,-250.0,0.00010583,2]
[335559060,1724328632320,-250.0,0.00010612,2]
[335559062,1724328632330,-250.0,0.0001064,2]
[335559064,1724328632339,-250.0,0.00010669,2]
[335559066,1724328632349,-250.0,0.00010698,2]
[335559068,1724328632358,-250.0,0.00010727,2]
[335559070,1724328632368,-154.79103211,0.00010739,2]
[335559072,1724328632377,-250.0,0.00010756,2]
[335559073,1724328632388,-250.0,0.00010785,2]
[335559074,1724328632397,-250.0,0.00010814,2]
[335559075,1724328632406,-250.0,0.00010843,2]
[335559076,1724328632416,-250.0,0.00010872,2]
[335559077,1724328632425,-250.0,0.000109,2]
[335559078,1724328632434,-250.0,0.00010929,2]
[335559079,1724328632444,-396.01822435,0.00010958,2]
[335559080,1724328632453,-250.0,0.00010958,2]
[335559081,1724328632462,-250.0,0.00010987,2]
[335559082,1724328632472,-250.0,0.00011016,2]
[335559083,1724328632481,-250.0,0.00011045,2]
[335559084,1724328632490,-250.0,0.00011074,2]
[335559085,1724328632500,-24021.2533979,0.00011731,2]
[335559086,1724328632512,-12064.98921849,0.00011731,2]
[335559087,1724328632522,-342.6945234,0.00011731,2]
[335559088,1724328632531,-2143.02877073,0.00012356,2]
[335559089,1724328632541,-2128.61939316,0.00012356,2]
[335559090,1724328632550,-617.0,0.00012629,2]
[335559091,1724328632560,-188.58516866,0.00012898,2]
[335559092,1724328632570,-155.21389728,0.00012934,2]
[335559093,1724328632579,-198.21272816,0.00012934,2]
[335559094,1724328632590,-210.26167047,0.00012934,2]
[335559095,1724328632599,-195.91574522,0.00012934,2]
[335559096,1724328632609,-155.41708141,0.00012934,2]
[335559097,1724328632618,-162.15870334,0.00012971,2]
[335559098,1724328632628,-404.47284307,0.00012971,2]
[335559099,1724328632637,-303.91507343,0.00012971,2]
[335559100,1724328632646,-422.36012849,0.00012971,2]
[335559101,1724328632656,-256.26265091,0.00012971,2]
[335559102,1724328632668,-155.25843996,0.00012971,2]
[335559103,1724328632678,-156.87056893,0.00012971,2]
[335559104,1724328632687,-190.09307092,0.00012971,2]
[335559105,1724328632696,-933.89722372,0.00012971,2]
[335559106,1724328632706,-307.3686335,0.00012985,2]
[335559107,1724328632716,-320.30409158,0.00012985,2]
[335559108,1724328632727,-309.52024362,0.00012985,2]
[335559109,1724328632736,-688.74575077,0.00012989,2]
[335559110,1724328632747,-309.52024362,0.00012989,2]
[335559111,1724328632758,-154.89913263,0.00012989,2]
[335559112,1724328632767,-157.20133548,0.00012989,2]
[335559113,1724328632777,-154.79103211,0.00012999,2]
[335559114,1724328632786,-155.13851835,0.00013051,2]
[335559116,1724328632796,-154.79103211,0.00013596,2]
[335559118,1724328632806,-426.355209,0.00014247,2]
[335559120,1724328632815,-953.69627248,0.00015,2]
[335559122,1724328632825,-782.84735433,0.00015,2]
[335559124,1724328632835,-207.6636928,0.00017534,2]
[335559126,1724328632844,-207.6636928,0.00017534,2]
[335559128,1724328632853,-207.6636928,0.00017534,2]
[335559130,1724328632865,-434.9213669,0.00017534,2]
[335559132,1724328632875,-288.8307071,0.00017616,2]
[335559134,1724328632884,-207.6636928,0.00018278,2]
[335559135,1724328632894,-207.6636928,0.00018356,2]
[335559136,1724328632904,-207.3456613,0.00018478,2]
[335559137,1724328632913,-500.0,0.00018521,2]
[335559138,1724328632922,-207.6636928,0.00018578,2]
[335559139,1724328632931,-207.6636928,0.0001863,2]
[335559140,1724328632940,-207.6636928,0.0001863,2]
[335559141,1724328632950,-207.6636928,0.0001863,2]
[335559142,1724328632959,-207.6636928,0.0001863,2]
[335559143,1724328632968,-414.0789132,0.0001863,2]
[335559144,1724328632978,-207.6636928,0.0001863,2]
[335559145,1724328632988,-207.6636928,0.0001863,2]
[335559146,1724328632997,-207.6636928,0.0001863,2]
[335559147,1724328633006,-500.0,0.00018641,2]
[335559148,1724328633016,-500.0,0.00018641,2]
[335559149,1724328633025,-500.0,0.00018641,2]
[335559150,1724328633034,-456.85219084,0.00018641,2]
[335559151,1724328633045,-153.0,0.00018712,2]
[335559152,1724328633054,-5623.26419453,0.00018751,2]
[335559153,1724328633063,-2000.0,0.00018847,2]
[335559154,1724328633073,-280.12599512,0.00018848,2]
[335559155,1724328633082,-150.112233,0.000189,2]
[335559156,1724328633092,-280.1259951,0.00018906,2]
[335559157,1724328633101,-323.68,0.00018938,3]
[335559158,1724328633111,-27026.43968551,0.00018948,2]
[335559159,1724328633281,-434.4293937,0.00018948,2]
[335559160,1724328638302,-662.732602,0.000129,2]
[335559161,1724328638352,-1756.43924874,0.000129,2]
[335559162,1724328638361,-154.79103211,0.00013497,2]
[335559163,1724328638370,-2000.0,0.00018847,2]
[335559164,1724328638380,-232297.33903679,0.00018948,2]
[335559165,1724328638391,-57831.46102966,0.00018958,2]
[335559166,1724328638400,-280.1259951,0.00018963,2]
[335559167,1724328638409,-150.112233,0.00019,2]
[335559168,1724328638419,-150.112233,0.00019,2]
[335559169,1724328638429,-150.112233,0.00019,2]
[335559170,1724328638438,-150.112233,0.00019,2]
[335559171,1724328638448,-280.1259951,0.00019021,2]
[335559172,1724328638457,-163.0,0.0001904,2]
[335559173,1724328638467,-150.01,0.00019048,2]
[335559174,1724328638477,-4598.96225329,0.00019048,2]
[335559175,1724328638487,-500.0,0.00019073,2]
[335559176,1724328638497,-2171.8258659,0.00019073,2]
[335559177,1724328638507,-369.91551788,0.00019076,2]
[335559178,1724328638517,-500.0,0.00019076,2]
[335559179,1724328638526,-500.0,0.00019076,2]
[335559180,1724328638536,-292.41788815,0.00019076,2]
[335559181,1724328638545,-500.0,0.00019076,2]
[335559182,1724328638555,-185.91415062,0.00019076,2]
[335559183,1724328638564,-500.0,0.00019076,2]
[335559184,1724328638575,-500.0,0.00019076,2]
[335559185,1724328638587,-500.0,0.00019076,2]
[335559186,1724328638596,-500.0,0.00019076,2]
[335559187,1724328638606,-500.0,0.00019076,2]
[335559188,1724328638616,-500.0,0.00019076,2]
[335559189,1724328638627,-500.0,0.00019076,2]
[335559190,1724328638636,-500.0,0.00019076,2]
[335559191,1724328638646,-500.0,0.00019076,2]
[335559192,1724328638656,-500.0,0.00019076,2]
[335559193,1724328638666,-500.0,0.00019076,2]
[335559194,1724328638676,-500.0,0.00019076,2]
[335559195,1724328638685,-500.0,0.00019076,2]
[335559196,1724328638695,-122181.45261278,0.00019077,2]
[335559541,1724328643410,-154.79103211,0.00012991,2]
[335559543,1724328643420,-2419.17185074,0.0001426,2]
[335559545,1724328643430,-161.87246565,0.00018947,2]
[335559547,1724328643440,-4087.96644737,0.00019048,2]
[335559549,1724328643450,-15798.87677162,0.00019077,9]
[335559551,1724328643460,-43522.40113747,0.00019077,2]
[335559827,1724328708548,-23817.31340413,0.00034938,120]
[335559828,1724328708585,-205.99889107,0.00034938,120]
[335559829,1724328708619,-306.53244434,0.00034938,120]
[335559830,1724328708646,-167.09751575,0.00034938,30]
[335559831,1724328708676,-240.82074905,0.00034938,120]
[335559832,1724328708705,-202.02092072,0.00034938,30]
[335559833,1724328708731,-312.06698914,0.00034938,120]
[335559834,1724328708758,-508.8189275,0.00034938,60]
[335559835,1724328708783,-206.18,0.00034938,30]
[335559836,1724328708809,-150.0,0.00034938,30]
[335559837,1724328708833,-150.0,0.00034938,30]
[335559838,1724328708858,-150.0,0.00034938,30]
[335559839,1724328708883,-150.0,0.00034938,30]
[335559840,1724328708908,-150.0,0.00034938,30]
[335559841,1724328708933,-250.0,0.00034938,30]
[335559842,1724328708959,-250.0,0.00034938,30]
[335559843,1724328708984,-250.0,0.00034938,30]
[335559844,1724328709009,-250.0,0.00034938,30]
[335559845,1724328709035,-250.0,0.00034938,30]
[335559846,1724328709060,-250.0,0.00034938,30]
[335559847,1724328709086,-250.0,0.00034938,30]
[335559848,1724328709111,-250.0,0.00034938,30]
[335559849,1724328709137,-250.0,0.00034938,30]
[335559850,1724328709162,-250.0,0.00034938,30]
[335559851,1724328709188,-250.0,0.00034938,30]
[335559852,1724328709213,-498.284785,0.00034938,30]
[335560174,1724328843370,20000.0,0.00027,120]
[335560292,1724329560297,500.0,0.00027,120]
[335560293,1724329570264,500.0,0.00027,120]
[335560294,1724329583205,500.0,0.00027,120]
[335560295,1724329592958,500.0,0.00027,120]
[335560296,1724329602509,500.0,0.00027,120]
[335560297,1724329609657,500.0,0.00027,120]
[335560298,1724329616738,500.0,0.00027,120]
[335560302,1724329623622,500.0,0.00027,120]
[335560304,1724329632773,500.0,0.00027,120]
[335560305,1724329641076,500.0,0.00027,120]
[335560306,1724329648290,500.0,0.00027,120]
[335560307,1724329657602,500.0,0.00027,120]
[335560309,1724329665841,500.0,0.00027,120]
[335560310,1724329672437,500.0,0.00027,120]
[335560312,1724329681059,500.0,0.00027,120]
[335560313,1724329703586,341.52890546,0.00027,120]
[335560321,1724329731969,500.0,0.00027,120]
[335560322,1724329733591,1613.61724275,9.899e-05,2]
[335560330,1724329748513,562.835,0.00027,120]
[335560332,1724329755141,-154.77558159,9.999e-05,2]
[335560333,1724329755163,-601.94985179,9.999e-05,2]
[335560334,1724329755187,-250.0,0.00010387,2]
[335560335,1724329755210,-250.0,0.00010416,2]
[335560336,1724329755233,-250.0,0.00010444,2]
[335560337,1724329755255,-250.0,0.00010473,2]
[335560338,1724329755277,-250.0,0.00010501,2]
[335560339,1724329755299,-250.0,0.0001053,2]
[335560340,1724329755321,-78.42374145,0.0001055,2]
[335560341,1724329759029,1125.5738711,9.884e-05,2]
[335560345,1724329788079,511.05431923,9.899e-05,2]
[335560350,1724329821054,24900.0,9.852e-05,2]
[335560355,1724329832970,-2274.99625855,0.0001055,2]
[335560356,1724329832980,-250.0,0.00010558,2]
[335560357,1724329832989,-250.0,0.00010587,2]
[335560358,1724329832999,-250.0,0.00010615,2]
[335560359,1724329833011,-250.0,0.00010644,2]
[335560360,1724329833020,-250.0,0.00010672,2]
[335560361,1724329833029,-250.0,0.00010701,2]
[335560362,1724329833039,-250.0,0.00010729,2]
[335560363,1724329833048,-250.0,0.00010758,2]
[335560364,1724329833057,-250.0,0.00010786,2]
[335560365,1724329833067,-250.0,0.00010815,2]
[335560366,1724329833079,-250.0,0.00010843,2]
[335560367,1724329833089,-250.0,0.00010872,2]
[335560368,1724329833099,-250.0,0.000109,2]
[335560369,1724329833109,-250.0,0.00010929,2]
[335560370,1724329833118,-150.3,0.00010959,2]
[335560371,1724329833128,-751.5,0.00010959,2]
[335560372,1724329833139,-300.0,0.00011408,2]
[335560373,1724329833148,-17504.83116114,0.00011409,2]
[335560431,1724329838360,-24911.07968479,0.00011409,2]
[335560432,1724329838369,-300.0,0.00011527,2]
[335560433,1724329838379,-997.64976914,0.0001173,2]
[335560434,1724329838388,-20801.28523468,0.00011731,2]
[335560435,1724329838398,-534.91146023,0.00011999,2]
[335560436,1724329838407,-9662.24242138,0.00011999,2]
[335560437,1724329838417,-8845.25511796,0.0001212,2]
[335560438,1724329838426,-1123.9224255,0.0001231,2]
[335560439,1724329838436,-8450.04200445,0.00012346,2]
[335560440,1724329838445,-1437.7886646,0.00012356,2]
[335560441,1724329838454,-719.90346352,0.00012356,2]
[335560442,1724329838471,-1992.96723002,0.00012356,2]
[335560443,1724329838480,-7144.12,0.0001242,2]
[335560444,1724329838490,-2166.4854483,0.00012629,2]
[335560445,1724329838499,-363.377021,0.00012679,2]
[335560446,1724329838509,-420.0,0.0001268,2]
[335560447,1724329838520,-2353.42,0.0001275,2]
[335560448,1724329838529,-30347.18777609,0.00012762,2]
[335560449,1724329838859,-3452.98024171,0.00012762,2]
[335560450,1724329838869,-154.76012181,0.00012779,2]
[335560451,1724329838878,-154.8961714,0.00012898,2]
[335560452,1724329838887,-190.09307092,0.00012898,2]
[335560453,1724329838897,-154.94544489,0.00012898,2]
[335560454,1724329838906,-179.26711324,0.00012898,2]
[335560455,1724329838916,-2116.77536945,0.000129,2]
[335560456,1724329838926,-156.87056893,0.00012934,2]
[335560457,1724329838938,-284.58728633,0.00012934,2]
[335560458,1724329838947,-309.52024362,0.00012934,2]
[335560459,1724329838957,-413.70707529,0.00012971,2]
[335560460,1724329838966,-569.6147727,0.00012971,2]
[335560461,1724329838976,-180.37892637,0.00012971,2]
[335560462,1724329838986,-196.83090407,0.00012971,2]
[335560463,1724329838996,-320.30409158,0.00012971,2]
[335560464,1724329839007,-154.76012181,0.00012971,2]
[335560465,1724329839018,-223.54518659,0.00012971,2]
[335560466,1724329839029,-210.26167047,0.00012971,2]
[335560467,1724329839038,-404.47284307,0.00012971,2]
[335560468,1724329839048,-160.46171883,0.00012985,2]
[335560469,1724329839058,-154.76012181,0.00012985,2]
[335560470,1724329839068,-688.74575077,0.00012985,2]
[335560471,1724329839077,-157.14223377,0.00012989,2]
[335560472,1724329839090,-154.76012181,0.00012989,2]
[335560473,1724329839100,-1767.34587713,0.00012999,2]
[335560474,1724329839109,-309.52024362,0.00013051,2]
[335560475,1724329839119,-500.0,0.0001325,2]
[335560476,1724329839129,-158.15745652,0.00013477,2]
[335560477,1724329839138,-308.87373714,0.00013599,2]
[335560478,1724329839147,-174.85504165,0.00013688,2]
[335560479,1724329839157,-160.92736459,0.00013698,2]
[335560480,1724329839166,-217.73648774,0.00013698,2]
[335560481,1724329839175,-817.60790766,0.00013698,2]
[335560482,1724329839184,-770.90710754,0.00013698,2]
[335560483,1724329839194,-161.87246565,0.00013699,2]
[335560484,1724329839202,-500.0,0.00013699,2]
[335560485,1724329839212,-500.0,0.00013699,2]
[335560486,1724329839221,-500.0,0.00013699,2]
[335560487,1724329839231,-500.0,0.00013699,2]
[335560488,1724329839240,-647.34443719,0.00013699,2]
[335560489,1724329839249,-500.0,0.00013699,2]
[335560490,1724329839258,-500.0,0.00013699,2]
[335560491,1724329839267,-500.0,0.00013699,2]
[335560492,1724329839277,-500.0,0.00013699,2]
[335560493,1724329839286,-500.0,0.00013699,2]
[335560494,1724329839295,-500.0,0.00013699,2]
[335560495,1724329839306,-500.0,0.00013699,2]
[335560496,1724329839316,-500.0,0.00013699,2]
[335560497,1724329839326,-500.0,0.00013699,2]
[335560498,1724329839337,-500.0,0.00013699,2]
[335560499,1724329839347,-500.0,0.00013699,2]
[335560500,1724329839356,-500.0,0.00013699,2]
[335560501,1724329839365,-336.8361093,0.00013699,2]
[335560502,1724329839376,-500.0,0.00013699,2]
[335560503,1724329839385,-386.8361093,0.00013699,2]
[335560504,1724329839394,-500.0,0.00013699,2]
[335560505,1724329839404,-500.0,0.00013699,2]
[335560506,1724329839413,-500.0,0.00013699,2]
[335560507,1724329839422,-386.8361093,0.00013699,2]
[335560508,1724329839431,-500.0,0.00013699,2]
[335560509,1724329839441,-500.0,0.00013699,2]
[335560510,1724329839450,-500.0,0.00013699,2]
[335560511,1724329839461,-500.0,0.00013699,2]
[335560512,1724329839471,-323.67221859,0.00013699,2]
[335560513,1724329839480,-500.0,0.00013699,2]
[335560514,1724329839489,-540.92901033,0.00013699,2]
[335560515,1724329839498,-500.0,0.00013699,2]
[335560516,1724329839508,-500.0,0.00013699,2]
[335560517,1724329839518,-386.8361093,0.00013699,2]
[335560518,1724329839528,-500.0,0.00013699,2]
[335560519,1724329839538,-500.0,0.00013699,2]
[335560520,1724329839548,-386.8361093,0.00013699,2]
[335560521,1724329839558,-500.0,0.00013699,2]
[335560522,1724329839568,-500.0,0.00013699,2]
[335560523,1724329839577,-500.0,0.00013699,2]
[335560524,1724329839588,-386.8361093,0.00013699,2]
[335560525,1724329839597,-500.0,0.00013699,2]
[335560526,1724329839607,-500.0,0.00013699,2]
[335560527,1724329839617,-500.0,0.00013699,2]
[335560528,1724329839626,-500.0,0.00013699,2]
[335560529,1724329839636,-500.0,0.00013699,2]
[335560530,1724329839646,-500.0,0.00013699,2]
[335560531,1724329839655,-500.0,0.00013699,2]
[335560532,1724329839665,-500.0,0.00013699,2]
[335560533,1724329839674,-500.0,0.00013699,2]
[335560534,1724329839683,-500.0,0.00013699,2]
[335560535,1724329839693,-286.8361093,0.00013699,2]
[335560536,1724329839703,-500.0,0.00013699,2]
[335560537,1724329839713,-500.0,0.00013699,2]
[335560538,1724329839722,-391.80546457,0.00013699,2]
[335560539,1724329839731,-500.0,0.00013699,2]
[335560540,1724329839741,-500.0,0.00013699,2]
[335560541,1724329839750,-500.0,0.00013699,2]
[335560542,1724329839759,-336.8361093,0.00013699,2]
[335560543,1724329839769,-194.87445923,0.00013792,2]
[335560544,1724329839778,-1000.0,0.00013798,2]
[335560545,1724329839788,-587.0,0.00013948,2]
[335560546,1724329839799,-20722.86181634,0.00014,4]
[335560547,1724329839808,-154.76012181,0.00014225,2]
[335560548,1724329839818,-154.76012181,0.00014225,2]
[335560549,1724329839828,-363.37702097,0.00014232,2]
[335560550,1724329839841,-288.30937481,0.00014245,2]
[335560552,1724329839850,-448.898876,0.00014247,2]
[335560553,1724329839860,-274.238871,0.00014247,2]
[335560554,1724329839870,-154.76012181,0.00014519,2]
[335560555,1724329839879,-154.76012181,0.00014519,2]
[335560556,1724329839888,-359.8995576,0.00014519,2]
[335560557,1724329839897,-1300.0,0.00014696,2]
[335560558,1724329839906,-823.0,0.00015343,2]
[335560559,1724329839916,-8450.04200445,0.00015774,2]
[335560560,1724329839926,-363.37702097,0.00015785,2]
[335560561,1724329839938,-1152.0,0.00016877,2]
[335560562,1724329839947,-17408.63017871,0.00017,2]
[335560563,1724329839957,-802.07026137,0.00017,2]
[335560564,1724329839967,-167.38831,0.000173,2]
[335560565,1724329839977,-363.37702097,0.00017337,2]
[335560566,1724329839986,-998.60195726,0.00017585,2]
[335560568,1724329839995,-150.112233,0.000177,2]
[335560569,1724329840005,-23730.39665812,0.0001786,2]
[335560570,1724329840018,-1619.72935528,0.0001786,2]
[335560571,1724329840027,-150.112233,0.000179,2]
[335560572,1724329840038,-150.112233,0.000179,2]
[335560573,1724329840048,-1000.0,0.00018,18]
[335560574,1724329840057,-1046.07260895,0.00018,2]
[335560575,1724329840066,-150.112233,0.000182,2]
[335560576,1724329840075,-150.112233,0.000184,2]
[335560577,1724329840086,-153.0,0.00018438,2]
[335560578,1724329840095,-153.0,0.00018438,2]
[335560579,1724329840104,-409.12482,0.00018438,2]
[335560580,1724329840114,-153.0,0.00018438,2]
[335560581,1724329840124,-153.0,0.00018438,2]
[335560582,1724329840134,-153.0,0.00018438,2]
[335560583,1724329840144,-500.0,0.00018521,2]
[335560584,1724329840153,-1613.0,0.00018564,2]
[335560585,1724329840163,-306.0,0.00018575,2]
[335560586,1724329840172,-153.0,0.00018575,2]
[335560588,1724329840317,-153.0,0.00018575,2]
[335560589,1724329840329,-153.0,0.00018575,2]
[335560590,1724329840342,-150.11224,0.000186,2]
[335560591,1724329840351,-150.112233,0.000186,2]
[335560592,1724329840362,-150.112233,0.000187,2]
[335560593,1724329840371,-8450.04200445,0.00018735,2]
[335560594,1724329840381,-8450.04200445,0.00018737,2]
[335560595,1724329840390,-290.93966491,0.00018743,2]
[335560596,1724329840399,-57831.46102966,0.00018747,2]
[335560597,1724329840408,-222.206416,0.00018747,2]
[335560598,1724329840418,-222.206416,0.00018747,2]
[335560600,1724329840428,-151.0,0.00018747,2]
[335560601,1724329840437,-903.716368,0.00018747,2]
[335560602,1724329840447,-903.716368,0.00018747,2]
[335560603,1724329840457,-935.188637,0.00018747,2]
[335560604,1724329840466,-935.188637,0.00018747,2]
[335560605,1724329840476,-151.0,0.00018747,2]
[335560606,1724329840485,-164.727457,0.00018747,2]
[335560607,1724329840495,-164.727457,0.00018747,2]
[335560608,1724329840505,-356.014522,0.00018747,2]
[335560609,1724329840515,-356.014522,0.00018747,2]
[335560610,1724329840525,-151.0,0.00018748,2]
[335560611,1724329840534,-151.0,0.00018748,2]
[335560612,1724329840545,-1238.642699,0.00018748,2]
[335560613,1724329840554,-1238.642699,0.00018748,2]
[335560614,1724329840564,-221.585542,0.00018748,2]
[335560615,1724329840573,-237.194709,0.00018748,2]
[335560616,1724329840585,-221.585542,0.00018748,2]
[335560617,1724329840595,-237.194709,0.00018748,2]
[335560618,1724329840605,-709.658148,0.00018748,2]
[335560619,1724329840614,-709.658148,0.00018748,2]
[335560620,1724329840624,-5623.26419453,0.00018753,2]
[335560621,1724329840633,-33800.1680178,0.00018828,2]
[335560622,1724329840643,-344.385119,0.00018828,2]
[335560623,1724329840653,-344.385119,0.00018828,2]
[335560624,1724329840662,-231.421078,0.00018828,2]
[335560625,1724329840672,-231.421078,0.00018828,2]
[335560626,1724329840681,-155.571518,0.00018828,2]
[335560627,1724329840691,-155.571518,0.00018828,2]
[335560628,1724329840700,-8450.04200445,0.00018837,2]
[335560629,1724329840709,-190.403436,0.00018838,2]
[335560630,1724329840719,-190.403436,0.00018838,2]
[335560631,1724329840728,-190.403436,0.00018838,2]
[335560632,1724329840738,-190.403436,0.00018838,2]
[335560633,1724329840747,-169.226502,0.00018838,2]
[335560634,1724329840757,-169.226502,0.00018838,2]
[335560635,1724329840766,-502.225627,0.00018838,2]
[335560636,1724329840775,-502.225627,0.00018838,2]
[335560637,1724329840785,-1094.53334,0.00018838,2]
[335560638,1724329840794,-1094.53334,0.00018838,2]
[335560639,1724329840803,-169.226502,0.00018838,2]
[335560640,1724329840813,-169.226502,0.00018838,2]
[335560641,1724329840822,-502.225627,0.00018838,2]
[335560642,1724329840833,-502.225627,0.00018838,2]
[335560643,1724329840843,-1094.53334,0.00018838,2]
[335560644,1724329840852,-1094.53334,0.00018838,2]
[335560645,1724329840862,-151.0,0.00018838,2]
[335560646,1724329840871,-151.0,0.00018838,2]
[335560647,1724329840881,-151.0,0.00018838,2]
[335560648,1724329840890,-151.0,0.00018838,2]
[335560649,1724329840899,-151.0,0.00018838,2]
[335560650,1724329840909,-151.0,0.00018838,2]
[335560651,1724329840919,-151.0,0.00018838,2]
[335560652,1724329840929,-151.0,0.00018838,2]
[335560653,1724329840943,-151.0,0.00018838,2]
[335560654,1724329840953,-151.0,0.00018838,2]
[335560655,1724329840963,-230.496432,0.00018838,2]
[335560656,1724329840974,-230.496432,0.00018838,2]
[335560657,1724329840983,-230.496432,0.00018838,2]
[335560658,1724329840993,-230.496432,0.00018838,2]
[335560659,1724329841003,-151.0,0.00018838,2]
[335560660,1724329841014,-151.0,0.00018838,2]
[335560661,1724329841023,-189.558518,0.00018838,2]
[335560662,1724329841033,-151.0,0.00018838,2]
[335560663,1724329841043,-151.0,0.00018838,2]
[335560664,1724329841053,-151.0,0.00018838,2]
[335560665,1724329841063,-151.0,0.00018838,2]
[335560666,1724329841073,-151.0,0.00018838,2]
[335560667,1724329841084,-151.0,0.00018838,2]
[335560668,1724329841094,-151.0,0.00018838,2]
[335560669,1724329841104,-151.0,0.00018838,2]
[335560670,1724329841114,-1238.642699,0.00018838,2]
[335560671,1724329841123,-1238.642699,0.00018838,2]
[335560672,1724329841133,-151.0,0.00018838,2]
[335560673,1724329841143,-151.0,0.00018838,2]
[335560674,1724329841153,-221.585542,0.00018838,2]
[335560675,1724329841163,-222.206416,0.00018838,2]
[335560676,1724329841173,-237.194709,0.00018838,2]
[335560677,1724329841183,-221.585542,0.00018838,2]
[335560678,1724329841192,-222.206416,0.00018838,2]
[335560679,1724329841202,-237.194709,0.00018838,2]
[335560680,1724329841212,-151.0,0.00018838,2]
[335560681,1724329841228,-903.716368,0.00018838,2]
[335560682,1724329841237,-903.716368,0.00018838,2]
[335560683,1724329841246,-935.188637,0.00018838,2]
[335560684,1724329841256,-151.0,0.00018838,2]
[335560685,1724329841265,-151.0,0.00018838,2]
[335560686,1724329841275,-151.0,0.00018838,2]
[335560687,1724329841284,-151.0,0.00018838,2]
[335560688,1724329841293,-935.188637,0.00018838,2]
[335560689,1724329841303,-709.658148,0.00018838,2]
[335560690,1724329841312,-709.658148,0.00018838,2]
[335560691,1724329841321,-151.0,0.00018838,2]
[335560692,1724329841330,-464.958074,0.00018838,2]
[335560693,1724329841340,-464.958074,0.00018838,2]
[335560694,1724329841349,-151.0,0.00018838,2]
[335560695,1724329841359,-151.0,0.00018838,2]
[335560696,1724329841368,-464.958074,0.00018838,2]
[335560697,1724329841378,-464.958074,0.00018838,2]
[335560698,1724329841387,-151.0,0.00018838,2]
[335560699,1724329841396,-288.956931,0.00018838,2]
[335560700,1724329841406,-164.727457,0.00018838,2]
[335560701,1724329841416,-164.727457,0.00018838,2]
[335560702,1724329841426,-356.014522,0.00018838,2]
[335560703,1724329841436,-356.014522,0.00018838,2]